bitfinex/quotes_BTCUSD_20220211
["timestamp","ask_amount","ask_price","bid_price","bid_amount"]
[1644550360410,0.02,43294.0,43291.0,0.43988914]
[1644550360613,0.00058861,43293.0,43292.0,0.057765]
[1644550360810,0.00058861,43293.0,43292.0,0.382125]
[1644550361409,0.02,43294.0,43292.0,0.382125]
[1644550361668,0.02,43294.0,43293.0,0.32436]
[1644550362261,0.02,43294.0,43293.0,0.39708874]
[1644550362659,0.02,43294.0,43293.0,0.41539367]
[1644550363062,0.02,43294.0,43293.0,0.34266493]
[1644550364762,0.02,43294.0,43293.0,0.36096986]
[1644550365062,0.02,43294.0,43293.0,0.34266493]
[1644550366719,0.02,43294.0,43293.0,0.36096986]
[1644550367119,0.02,43294.0,43293.0,0.34266493]
[1644550368719,0.02,43294.0,43293.0,0.36096986]
[1644550368920,0.02,43294.0,43293.0,0.34266493]
[1644550370868,0.02,43294.0,43293.0,0.36096986]
[1644550371073,0.02,43294.0,43293.0,0.34266493]
[1644550372769,0.02,43294.0,43293.0,0.36096986]
[1644550373011,0.32617004,43294.0,43293.0,0.36096986]
[1644550373811,0.02,43294.0,43293.0,0.51096986]
[1644550374013,0.0005452,43296.0,43293.0,0.51096986]
[1644550374014,0.0005452,43296.0,43295.0,0.4520388]
[1644550374214,0.00318048,43302.0,43296.0,0.95]
[1644550374513,0.00318048,43302.0,43297.0,0.37066]
[1644550374711,0.001,43302.0,43297.0,0.42066]
[1644550374911,0.001,43302.0,43298.0,0.32436]
[1644550375111,0.001,43302.0,43300.0,0.057755]
[1644550375311,0.001,43302.0,43300.0,0.382115]
[1644550375511,0.001,43302.0,43300.0,0.432115]
[1644550375714,0.001,43302.0,43300.0,0.532115]
[1644550376856,0.001,43302.0,43300.0,0.55041993]
[1644550377759,0.001,43302.0,43300.0,0.40041993]
[1644550377955,0.001,43302.0,43300.0,0.01830493]
[1644550378155,0.05,43301.0,43300.0,0.01830493]
[1644550378759,0.20121508,43301.0,43300.0,0.01830493]
[1644550379156,0.25097402,43301.0,43300.0,0.01830493]
[1644550379356,0.25097402,43301.0,43300.0,0.03660986]
[1644550380057,0.20097402,43301.0,43300.0,0.03660986]
[1644550380410,0.32543129,43294.0,43293.0,0.32436]
[1644550381210,0.32043129,43294.0,43293.0,0.32436]
[1644550381610,0.25097402,43301.0,43293.0,0.32436]
[1644550381808,0.05,43301.0,43296.0,0.057777]
[1644550382011,0.00061571,43298.0,43294.0,0.057777]
[1644550382308,0.00061571,43298.0,43295.0,0.32436]
[1644550382709,0.34478731,43297.0,43295.0,0.32436]
[1644550382910,0.39478731,43297.0,43295.0,0.382139]
[1644550383112,0.44478731,43297.0,43294.0,0.01830493]
[1644550383709,0.39478731,43297.0,43294.0,0.01830493]
[1644550384558,0.34478731,43297.0,43294.0,0.01830493]
[1644550384959,0.05,43295.0,43294.0,0.01830493]
[1644550385961,0.34530444,43295.0,43294.0,0.01830493]
[1644550386861,0.34530444,43295.0,43287.0,0.00056843]
[1644550387063,0.05,43291.0,43287.0,0.00056843]
[1644550387362,0.20034998,43289.0,43287.0,0.00056843]
[1644550387914,0.20034998,43289.0,43278.0,0.30400337]
[1644550388117,0.20034998,43289.0,43286.0,0.00056844]
[1644550388619,0.05,43287.0,43286.0,0.00056844]
[1644550388817,0.47035839,43287.0,43286.0,0.00056844]
[1644550389021,0.67035839,43287.0,43267.0,0.02132623]
[1644550389219,0.05,43278.0,43267.0,0.02132623]
[1644550389417,0.107813,43278.0,43267.0,0.02132623]
[1644550389619,0.34681105,43278.0,43268.0,0.057811]
[1644550390016,0.29681105,43278.0,43267.0,0.02132623]
[1644550390218,0.35517612,43269.0,43267.0,0.02132623]
[1644550390416,0.35163456,43272.0,43271.0,0.00056745]
[1644550391420,0.35163456,43272.0,43266.0,0.057812]
[1644550391688,0.35163456,43272.0,43269.0,0.00056747]
[1644550392279,0.66729806,43272.0,43270.0,0.32436]
[1644550392478,0.66729806,43272.0,43269.0,0.00056747]
[1644550392678,0.66729806,43272.0,43268.0,0.32436]
[1644550392878,0.66729806,43272.0,43269.0,0.00056748]
[1644550393478,0.35163456,43272.0,43269.0,0.00056748]
[1644550393680,0.35163456,43272.0,43270.0,0.32436]
[1644550393879,0.35163456,43272.0,43268.0,0.057809]
[1644550394078,0.35163456,43272.0,43269.0,0.32436]
[1644550394681,0.35163456,43272.0,43268.0,0.05837648]
[1644550394881,0.34681105,43278.0,43269.0,0.057806]
[1644550395081,0.34681105,43278.0,43271.0,0.057807]
[1644550395911,0.28591633,43275.0,43271.0,0.057807]
[1644550396513,0.28591633,43275.0,43271.0,0.05837445]
[1644550397512,0.28591633,43275.0,43271.0,0.057807]
[1644550397713,0.28591633,43275.0,43271.0,0.05837445]
[1644550398217,0.29681105,43278.0,43273.0,0.057804]
[1644550398413,0.33697145,43284.0,43273.0,0.057804]
[1644550398615,0.27837724,43279.0,43273.0,0.057804]
[1644550398813,0.27837724,43279.0,43273.0,0.05837142]
[1644550399163,0.32697128,43278.0,43273.0,0.05837142]
[1644550399461,0.32697128,43278.0,43274.0,0.05780075]
[1644550399858,0.32197128,43278.0,43274.0,0.05780075]
[1644550400059,0.32197128,43278.0,43274.0,0.05836816]
[1644550401061,0.32197128,43278.0,43274.0,0.05780075]
[1644550401267,0.32197128,43278.0,43274.0,0.05836816]
[1644550402263,0.32197128,43278.0,43270.0,0.0001]
[1644550402464,0.32197128,43278.0,43274.0,0.00056741]
[1644550402908,0.29700213,43277.0,43274.0,0.00056741]
[1644550403507,0.29700213,43277.0,43270.0,0.0001]
[1644550403706,0.29700213,43277.0,43273.0,0.00056742]
[1644550404712,0.29700213,43277.0,43271.0,0.057807]
[1644550405009,0.29700213,43277.0,43273.0,0.00056743]
[1644550405610,0.29700213,43277.0,43273.0,0.05837443]
[1644550405809,0.32197128,43278.0,43273.0,0.05837443]
[1644550406210,0.25327972,43282.0,43273.0,0.05837443]
[1644550406659,0.28905909,43281.0,43273.0,0.11617643]
[1644550406856,0.30327972,43282.0,43275.0,0.057803]
[1644550407056,0.29370505,43281.0,43275.0,0.057803]
[1644550407258,0.63309716,43281.0,43275.0,0.0583704]
[1644550407955,0.68309716,43281.0,43275.0,0.1161714]
[1644550408156,0.68309716,43281.0,43275.0,0.0583704]
[1644550408356,0.38939211,43281.0,43275.0,0.057803]
[1644550408558,0.38939211,43281.0,43276.0,0.00017022]
[1644550409056,0.33939211,43281.0,43276.0,0.00017022]
[1644550409759,0.33939211,43281.0,43276.0,0.00056738]
[1644550410158,0.34273252,43279.0,43276.0,0.00056738]
[1644550410910,0.34273252,43279.0,43275.0,0.05837139]
[1644550412011,0.34273252,43279.0,43273.0,0.057807]
[1644550412211,0.34273252,43279.0,43275.0,0.0005674]
[1644550413210,0.34273252,43279.0,43271.0,0.23121174]
[1644550413409,0.34273252,43279.0,43275.0,0.0005674]
[1644550413812,0.34273252,43279.0,43275.0,0.0583724]
[1644550414458,0.34273252,43279.0,43275.0,0.057805]
[1644550414654,0.34273252,43279.0,43275.0,0.0583724]
[1644550415655,0.34273252,43279.0,43275.0,0.057805]
[1644550415855,0.34273252,43279.0,43275.0,0.0583724]
[1644550416456,0.34273252,43279.0,43275.0,0.0005674]
[1644550416857,0.34273252,43279.0,43271.0,0.115607]
[1644550417056,0.34273252,43279.0,43275.0,0.0005674]
[1644550417905,0.34273252,43279.0,43274.0,0.057807]
[1644550418109,0.34273252,43279.0,43275.0,0.0005674]
[1644550418907,0.34273252,43279.0,43275.0,0.0583704]
[1644550419108,0.34273252,43279.0,43276.0,0.057802]
[1644550422763,0.34273252,43279.0,43272.0,0.42]
[1644550422764,0.31788085,43278.0,43272.0,0.42]
[1644550422959,0.31788085,43278.0,43275.0,0.00056739]
[1644550423360,0.05,43276.0,43275.0,0.00056739]
[1644550423558,0.0963,43276.0,43275.0,0.00056739]
[1644550423759,0.1463,43276.0,43275.0,0.00056739]
[1644550423958,0.46655047,43276.0,43273.0,0.02006537]
[1644550424158,0.25780465,43275.0,43273.0,0.02006537]
[1644550424359,0.3634989,43274.0,43273.0,0.02006537]
[1644550424761,0.4134989,43274.0,43273.0,0.02006537]
[1644550425162,0.4713209,43274.0,43270.0,0.0001]
[1644550425419,0.4134989,43274.0,43270.0,0.0001]
[1644550426821,0.05782,43273.0,43270.0,0.0001]
[1644550433814,0.31617337,43272.0,43270.0,0.0001]
[1644550434011,0.42029337,43272.0,43270.0,0.0001]
[1644550434210,0.30331968,43271.0,43270.0,0.0001]
[1644550434410,0.34961968,43271.0,43270.0,0.0001]
[1644550437457,0.80039533,43274.0,43270.0,0.0001]
[1644550437661,0.80244271,43274.0,43270.0,0.0001]
[1644550437957,0.80371191,43274.0,43270.0,0.0001]
[1644550438158,0.3634989,43274.0,43271.0,0.057812]
[1644550438359,0.31692025,43273.0,43271.0,0.057812]
[1644550438958,0.31692025,43273.0,43270.0,0.00055287]
[1644550438959,0.36692025,43273.0,43270.0,0.00055287]
[1644550439258,0.51692025,43273.0,43270.0,0.00055287]
[1644550439657,0.661483,43273.0,43270.0,0.0001]
[1644550439857,0.107824,43273.0,43270.0,0.0001]
[1644550440058,0.057822,43271.0,43270.0,0.0001]
[1644550440913,0.37973272,43271.0,43270.0,0.0001]
[1644550441111,0.057822,43271.0,43270.0,0.0001]
[1644550441511,0.19456275,43273.0,43270.0,0.0001]
[1644550441512,0.25237875,43273.0,43270.0,0.0001]
[1644550441711,0.107816,43273.0,43270.0,0.0001]
[1644550441912,0.05,43273.0,43270.0,0.0001]
[1644550442111,0.68026321,43274.0,43270.0,0.0001]
[1644550442511,0.55806165,43274.0,43270.0,0.0001]
[1644550442713,0.05,43274.0,43270.0,0.0001]
[1644550443113,0.1218,43275.0,43270.0,0.0001]
[1644550443114,0.1718,43275.0,43270.0,0.0001]
[1644550443415,0.3510553,43275.0,43270.0,0.0001]
[1644550443612,0.3510553,43275.0,43270.0,6.19e-06]
[1644550444260,0.3010553,43275.0,43271.0,0.057813]
[1644550445261,0.32621985,43275.0,43271.0,0.057813]
[1644550445661,0.38403285,43275.0,43271.0,0.057813]
[1644550446070,0.30219805,43274.0,43269.0,0.057814]
[1644550446265,0.30313481,43274.0,43268.0,0.00023853]
[1644550446463,0.30313481,43274.0,43265.0,0.00023853]
[1644550446664,0.30313481,43274.0,43264.0,0.11586953]
[1644550446962,0.057817,43273.0,43265.0,0.05781507]
[1644550447162,0.057817,43273.0,43267.0,0.00056164]
[1644550447363,0.28464231,43272.0,43267.0,0.05837864]
[1644550447563,0.29568457,43271.0,43267.0,0.05837864]
[1644550447765,0.29568457,43271.0,43267.0,0.00056164]
[1644550448213,0.35350357,43271.0,43263.0,0.00023853]
[1644550448416,0.35350357,43271.0,43267.0,0.00056165]
[1644550448814,0.25052036,43269.0,43267.0,0.00056165]
[1644550449015,0.29213286,43268.0,43267.0,0.00056165]
[1644550449315,0.29870009,43268.0,43262.0,0.00023853]
[1644550449515,0.057823,43268.0,43261.0,0.53564389]
[1644550449816,0.33416804,43266.0,43265.0,0.00056167]
[1644550450214,0.27416804,43266.0,43265.0,0.00056167]
[1644550450716,0.27416804,43266.0,43262.0,0.00023853]
[1644550450917,0.27416804,43266.0,43264.0,0.057822]
[1644550456510,0.057823,43268.0,43264.0,0.057822]
[1644550456711,0.34762415,43268.0,43264.0,0.05806053]
[1644550456911,0.34762415,43268.0,43264.0,0.057822]
[1644550457113,0.34762415,43268.0,43264.0,0.05806053]
[1644550457510,0.7418521,43268.0,43264.0,0.05806053]
[1644550458112,0.7418521,43268.0,43264.0,0.05828301]
[1644550459013,0.7418521,43268.0,43264.0,0.057822]
[1644550459263,0.7418521,43268.0,43264.0,0.0582817]
[1644550459561,0.76167658,43268.0,43264.0,0.0582817]
[1644550460160,0.76167658,43268.0,43264.0,0.057822]
[1644550460361,0.76167658,43268.0,43264.0,0.0582817]
[1644550460564,0.41405243,43268.0,43264.0,0.0582817]
[1644550461368,0.39422795,43268.0,43264.0,0.057822]
[1644550461564,0.41536076,43268.0,43264.0,0.0582817]
[1644550462563,0.41536076,43268.0,43264.0,0.057822]
[1644550462764,0.41536076,43268.0,43264.0,0.05828189]
[1644550463017,0.47318376,43268.0,43264.0,0.05828189]
[1644550463817,0.47318376,43268.0,43264.0,0.057822]
[1644550464019,0.45205095,43268.0,43264.0,0.05828189]
[1644550464418,0.45205095,43268.0,43264.0,0.00045989]
[1644550465020,0.45205095,43268.0,43262.0,0.00023853]
[1644550465220,0.45205095,43268.0,43264.0,0.00045989]
[1644550465420,0.45134095,43268.0,43264.0,0.00045989]
[1644550465822,0.45134095,43268.0,43264.0,0.05828189]
[1644550466321,0.45134095,43268.0,43264.0,0.057822]
[1644550466525,0.45134095,43268.0,43264.0,0.05828186]
[1644550466962,0.45134095,43268.0,43264.0,0.00045986]
[1644550467363,0.45134095,43268.0,43262.0,0.00023853]
[1644550467562,0.45134095,43268.0,43264.0,0.00045986]
[1644550468669,0.45126158,43268.0,43262.0,0.00023853]
[1644550468866,0.45126158,43268.0,43264.0,0.00045986]
[1644550469764,0.45126158,43268.0,43262.0,0.00023853]
[1644550469965,0.45126158,43268.0,43264.0,0.00045986]
[1644550471115,0.45126158,43268.0,43262.0,0.00023853]
[1644550471318,0.45126158,43268.0,43264.0,0.00045986]
[1644550472317,0.45126158,43268.0,43262.0,0.00023853]
[1644550472517,0.45126158,43268.0,43264.0,0.00045986]
[1644550473315,0.45126158,43268.0,43264.0,0.05828386]
[1644550473517,0.45126158,43268.0,43264.0,0.057824]
[1644550473718,0.45126158,43268.0,43264.0,0.05828386]
[1644550474663,0.45126158,43268.0,43264.0,0.057824]
[1644550474863,0.45126158,43268.0,43264.0,0.05828386]
[1644550475863,0.45126158,43268.0,43264.0,0.057824]
[1644550476066,0.45126158,43268.0,43264.0,0.00045986]
[1644550476969,0.45126158,43268.0,43262.0,0.00023853]
[1644550477168,0.45126158,43268.0,43264.0,0.00045986]
[1644550478210,0.45126158,43268.0,43264.0,0.00023853]
[1644550478410,0.45126158,43268.0,43264.0,0.00045986]
[1644550478611,0.45126158,43268.0,43264.0,0.00069839]
[1644550479412,0.45126158,43268.0,43264.0,0.00023853]
[1644550479614,0.45126158,43268.0,43264.0,0.00045986]
[1644550479911,0.45126158,43268.0,43264.0,0.00069839]
[1644550480716,0.1409071,43271.0,43266.0,0.0791341]
[1644550480912,0.1409071,43269.0,43266.0,0.0791341]
[1644550481113,0.02516455,43275.0,43266.0,0.0791341]
[1644550481663,0.25439015,43275.0,43266.0,0.0791341]
[1644550482066,0.31128536,43273.0,43268.0,0.00045982]
[1644550482267,0.25439015,43275.0,43268.0,0.00045982]
[1644550482465,0.39529725,43275.0,43268.0,0.00045982]
[1644550483065,0.16607165,43275.0,43267.0,0.00023853]
[1644550483267,0.16607165,43275.0,43268.0,0.05827123]
[1644550483467,0.02516455,43275.0,43268.0,0.11608423]
[1644550484267,0.02516455,43275.0,43268.0,0.17343741]
[1644550484469,0.02516455,43275.0,43269.0,0.057804]
[1644550485269,0.08297955,43275.0,43269.0,0.057804]
[1644550485521,0.29857853,43274.0,43269.0,0.057804]
[1644550485722,0.29857853,43274.0,43268.0,0.00045982]
[1644550486623,0.19778367,43272.0,43268.0,0.00045982]
[1644550486822,0.28965112,43271.0,43268.0,0.057819]
[1644550487122,0.19778367,43272.0,43268.0,0.00045982]
[1644550487921,0.19778367,43272.0,43266.0,0.00023853]
[1644550487922,0.05782,43271.0,43267.0,0.057821]
[1644550488122,0.35716568,43271.0,43268.0,0.00045982]
[1644550488522,0.49807278,43271.0,43268.0,0.00045982]
[1644550488722,0.35716568,43271.0,43268.0,0.00045982]
[1644550489023,0.49807278,43271.0,43266.0,0.057823]
[1644550489271,0.49807278,43271.0,43267.0,0.00045982]
[1644550489272,0.64807278,43271.0,43267.0,0.00045982]
[1644550489473,0.05784,43269.0,43267.0,0.00045982]
[1644550489768,0.48261862,43268.0,43267.0,0.00045982]
[1644550490168,0.58261862,43268.0,43267.0,0.00045982]
[1644550490369,0.057838,43266.0,43260.0,0.00023853]
[1644550490569,0.34630849,43261.0,43259.0,0.00183965]
[1644550490768,0.3714929,43261.0,43259.0,0.00183965]
[1644550491169,0.26903893,43260.0,43259.0,0.00183965]
[1644550491569,0.26903893,43260.0,43256.0,0.00023853]
[1644550491770,0.32687593,43260.0,43257.0,0.00045993]
[1644550492169,0.057837,43260.0,43257.0,0.00045993]
[1644550492371,0.36163183,43261.0,43257.0,0.00045993]
[1644550492572,0.07148441,43261.0,43257.0,0.00045993]
[1644550492770,0.07148441,43261.0,43257.0,0.00023853]
[1644550493014,0.07148441,43261.0,43257.0,0.00045994]
[1644550493215,0.31057539,43259.0,43257.0,0.05829194]
[1644550493415,0.31057539,43259.0,43257.0,0.00069847]
[1644550493616,0.31057539,43259.0,43257.0,0.00045994]
[1644550494018,0.31057539,43259.0,43256.0,0.00023853]
[1644550494218,0.31057539,43259.0,43256.0,0.00045995]
[1644550494518,0.41267385,43261.0,43256.0,0.05829495]
[1644550495119,0.41267385,43261.0,43255.0,0.00023853]
[1644550495318,0.29283179,43260.0,43256.0,0.00045995]
[1644550495520,0.3099996,43257.0,43256.0,0.00045995]
[1644550495720,0.61737441,43257.0,43256.0,0.00045995]
[1644550495920,0.64176825,43257.0,43256.0,0.00045995]
[1644550496319,0.68806825,43257.0,43256.0,0.00045995]
[1644550496520,0.68806825,43257.0,43254.0,0.00045997]
[1644550496770,0.25472348,43255.0,43254.0,0.00045997]
[1644550496967,0.62919414,43255.0,43254.0,0.00045997]
[1644550497567,0.62919414,43255.0,43250.0,0.0001]
[1644550497771,0.62919414,43255.0,43252.0,0.00045999]
[1644550498869,0.62919414,43255.0,43250.0,0.0001]
[1644550499068,0.43231766,43255.0,43251.0,0.00046]
[1644550499968,0.43231766,43255.0,43250.0,0.0001]
[1644550500168,0.057851,43252.0,43251.0,0.00046]
[1644550500421,0.35236472,43252.0,43251.0,0.00046]
[1644550501218,0.35236472,43252.0,43250.0,0.0001]
[1644550501416,0.30040546,43251.0,43250.0,0.0001]
[1644550507172,0.44670546,43251.0,43250.0,0.0001]
[1644550507374,0.49670546,43251.0,43250.0,0.0001]
[1644550508517,0.49670546,43251.0,43242.0,0.07]
[1644550508518,0.95866154,43251.0,43242.0,0.07]
[1644550508716,0.057867,43249.0,43248.0,0.0002411]
[1644550509015,0.447988,43249.0,43242.0,0.0702411]
[1644550509215,0.497988,43249.0,43242.0,0.0702411]
[1644550509424,0.25900968,43248.0,43242.0,0.0702411]
[1644550509617,0.42275917,43247.0,43242.0,0.0702411]
[1644550509818,0.057871,43245.0,43243.0,0.00046008]
[1644550510016,0.3720318,43244.0,43243.0,0.00070118]
[1644550510218,0.3720318,43244.0,43243.0,0.00046008]
[1644550510416,0.4720318,43244.0,43243.0,0.00046008]
[1644550510820,0.52990047,43244.0,43242.0,0.0702411]
[1644550511117,0.43228563,43243.0,43242.0,0.07]
[1644550511419,0.57858563,43243.0,43242.0,0.07]
[1644550511679,0.88571979,43243.0,43242.0,0.07]
[1644550511874,0.83571979,43243.0,43242.0,0.07]
[1644550512073,0.35343416,43243.0,43242.0,0.07]
[1644550513073,0.41129216,43243.0,43242.0,0.07]
[1644550513577,0.7099889,43243.0,43242.0,0.07]
[1644550513779,0.95,43242.0,43240.0,0.00045898]
[1644550513975,0.36226222,43241.0,43240.0,0.00045898]
[1644550514174,0.2950771,43241.0,43240.0,0.00045898]
[1644550514374,0.4450771,43241.0,43240.0,0.00045898]
[1644550514574,0.4450771,43241.0,43232.0,0.02]
[1644550514775,0.32525869,43240.0,43232.0,0.02]
[1644550514976,0.35234241,43236.0,43232.0,0.02]
[1644550515176,0.0463,43235.0,43232.0,0.02]
[1644550515424,0.057875,43234.0,43232.0,0.02]
[1644550515626,0.11574967,43234.0,43232.0,0.02]
[1644550516127,0.30126735,43233.0,43232.0,0.02]
[1644550516925,0.11574967,43234.0,43232.0,0.02]
[1644550517126,0.115753,43233.0,43232.0,0.02]
[1644550517428,0.34204099,43233.0,43232.0,0.02]
[1644550517628,0.34827524,43233.0,43232.0,0.02]
[1644550517830,0.44827524,43233.0,43232.0,0.02]
[1644550518630,0.34827524,43233.0,43232.0,0.02]
[1644550524114,0.34827524,43233.0,43232.0,0.015]
[1644550526969,0.34827524,43233.0,43232.0,0.01]
[1644550530172,0.34827524,43233.0,43232.0,0.005]
[1644550531016,0.44827524,43233.0,43232.0,0.005]
[1644550531219,0.1963,43233.0,43232.0,0.005]
[1644550532016,0.19621067,43233.0,43232.0,0.005]
[1644550532218,0.09621067,43233.0,43232.0,0.005]
[1644550532418,0.26987167,43233.0,43232.0,0.005]
[1644550532617,0.219961,43233.0,43232.0,0.005]
[1644550533220,0.62427807,43233.0,43232.0,0.005]
[1644550533417,0.72427807,43233.0,43232.0,0.005]
[1644550535667,0.67427807,43233.0,43232.0,0.005]
[1644550535869,0.69528264,43233.0,43232.0,0.005]
[1644550536671,0.24096557,43233.0,43232.0,0.005]
[1644550536871,0.02100457,43233.0,43232.0,0.005]
[1644550537920,0.02264374,43235.0,43233.0,0.0579911]
[1644550538121,0.08051374,43235.0,43233.0,0.1158581]
[1644550538521,0.02264374,43235.0,43233.0,0.1158581]
[1644550539222,0.02264374,43235.0,43233.0,0.115734]
[1644550543470,0.02264374,43235.0,43233.0,0.165734]
[1644550544369,0.02264374,43235.0,43234.0,0.32436]
[1644550544569,0.02264374,43235.0,43233.0,0.11597518]
[1644550544769,0.02264374,43235.0,43233.0,0.115734]
[1644550546015,0.2887127,43239.0,43234.0,0.057863]
[1644550546215,0.3465757,43239.0,43235.0,0.057863]
[1644550546615,0.3465757,43239.0,43235.0,0.00024118]
[1644550546815,0.3465757,43239.0,43233.0,0.00024118]
[1644550547014,0.3465757,43239.0,43232.0,0.120731]
[1644550547214,0.3465757,43239.0,43235.0,0.00046171]
[1644550547415,0.057863,43239.0,43235.0,0.00046171]
[1644550547915,0.057863,43239.0,43236.0,0.057862]
[1644550548115,0.057863,43239.0,43236.0,0.05810318]
[1644550548517,0.33490967,43239.0,43236.0,0.057862]
[1644550548718,0.33490967,43239.0,43236.0,0.05810318]
[1644550549167,0.27704667,43239.0,43237.0,0.057861]
[1644550549365,0.057861,43241.0,43237.0,0.057861]
[1644550549565,0.20118805,43243.0,43237.0,0.05810218]
[1644550549864,0.05,43243.0,43237.0,0.057861]
[1644550550265,0.46181001,43244.0,43237.0,0.057861]
[1644550550463,0.3481731,43242.0,43237.0,0.057861]
[1644550550864,0.3481731,43242.0,43238.0,0.05832071]
[1644550551064,0.057858,43243.0,43238.0,0.05855989]
[1644550551668,0.15118805,43246.0,43238.0,0.00070289]
[1644550551869,0.3893,43248.0,43238.0,0.05024118]
[1644550551870,0.5,43244.0,43238.0,0.05024118]
[1644550552065,0.5,43244.0,43242.0,0.057843]
[1644550552264,0.5,43244.0,43243.0,0.32436]
[1644550552665,0.33449194,43247.0,43242.0,0.057844]
[1644550552916,0.33449194,43247.0,43241.0,0.16592818]
[1644550552917,0.33449194,43247.0,43241.0,0.00024118]
[1644550553115,0.33449194,43247.0,43239.0,0.00024118]
[1644550553314,0.33449194,43247.0,43242.0,0.00046166]
[1644550553517,0.33449194,43247.0,43242.0,0.05830966]
[1644550553914,0.33449194,43247.0,43242.0,0.05820671]
[1644550554115,0.28102117,43244.0,43242.0,0.05820671]
[1644550554319,0.28102117,43244.0,43242.0,0.05774505]
[1644550554515,0.26977732,43244.0,43242.0,0.05820671]
[1644550554716,0.33449194,43247.0,43242.0,0.05820671]
[1644550554916,0.32949194,43247.0,43242.0,0.05820671]
[1644550555116,0.32939098,43247.0,43242.0,0.05820671]
[1644550555318,0.32939098,43247.0,43242.0,0.00046166]
[1644550555519,0.32939098,43247.0,43239.0,0.05785]
[1644550555715,0.32939098,43247.0,43237.0,0.05]
[1644550555716,0.32939098,43247.0,43242.0,0.00046166]
[1644550556421,0.44336885,43246.0,43242.0,0.00046166]
[1644550556686,0.05,43244.0,43237.0,0.00024118]
[1644550556880,0.05,43244.0,43242.0,0.00046166]
[1644550556881,0.31596222,43243.0,43242.0,0.00046166]
[1644550557079,0.455897,43243.0,43242.0,0.00046166]
[1644550557279,0.605897,43243.0,43242.0,0.00046166]
[1644550557479,0.663767,43243.0,43242.0,0.00046166]
[1644550557979,0.663767,43243.0,43237.0,0.00024118]
[1644550557980,1.25708505,43243.0,43237.0,0.00024118]
[1644550558182,0.15118805,43242.0,43240.0,0.00046168]
[1644550558379,0.19748805,43242.0,43240.0,0.00046168]
[1644550558582,0.47894916,43242.0,43240.0,0.00046168]
[1644550558781,0.31459402,43241.0,43240.0,0.00046168]
[1644550558979,0.36459402,43241.0,43240.0,0.00046168]
[1644550559280,0.2837829,43237.0,43235.0,0.00024118]
[1644550559479,0.2837829,43237.0,43233.0,0.00024118]
[1644550559680,0.2837829,43237.0,43232.0,0.00684707]
[1644550559880,0.3416499,43237.0,43232.0,0.00684707]
[1644550560280,0.3416499,43237.0,43232.0,0.005]
[1644550560525,0.3416499,43237.0,43232.0,0.00546176]
[1644550561123,0.11573397,43236.0,43232.0,0.00546176]
[1644550561522,0.11573397,43236.0,43232.0,0.005]
[1644550561725,0.11573397,43236.0,43232.0,0.00546396]
[1644550563526,0.11573397,43236.0,43232.0,0.0047826]
[1644550563926,0.11573397,43236.0,43232.0,0.00431864]
[1644550564175,0.11573397,43236.0,43232.0,0.0047826]
[1644550565168,0.11573397,43236.0,43232.0,0.00431864]
[1644550565369,0.11573397,43236.0,43232.0,0.00478229]
[1644550566171,0.16573397,43236.0,43232.0,0.00478229]
[1644550566470,0.16573397,43236.0,43232.0,0.00431864]
[1644550566669,0.16573397,43236.0,43232.0,0.00478229]
[1644550566873,0.39720065,43235.0,43232.0,0.00478229]
[1644550567070,0.11576032,43234.0,43232.0,0.00478229]
[1644550567271,0.162064,43233.0,43232.0,0.00478229]
[1644550567471,0.212064,43233.0,43232.0,0.00478229]
[1644550567770,0.212064,43233.0,43232.0,0.00431864]
[1644550569015,0.36325205,43233.0,43232.0,0.00431864]
[1644550569416,0.46325205,43233.0,43232.0,0.00431864]
[1644550569617,0.96325205,43233.0,43232.0,0.00431864]
[1644550570016,0.98281842,43233.0,43232.0,0.00431864]
[1644550570717,1.03281842,43233.0,43232.0,0.00431864]
[1644550571969,1.03373768,43233.0,43232.0,0.00431864]
[1644550573973,1.03197891,43233.0,43232.0,0.00431864]
[1644550576018,1.03200741,43233.0,43232.0,0.00431864]
[1644550576622,1.18154887,43232.0,43231.0,0.00024118]
[1644550576821,1.18154887,43232.0,43230.0,0.00046179]
[1644550576822,0.15,43231.0,43230.0,0.00070297]
[1644550577120,0.76445348,43231.0,43230.0,0.00070297]
[1644550577420,0.23156779,43229.0,43225.0,0.00024118]
[1644550577621,1.2200968,43229.0,43228.0,0.00046181]
[1644550577822,1.47128485,43229.0,43228.0,0.00046181]
[1644550578021,1.78222869,43229.0,43228.0,0.00046181]
[1644550578219,1.83222869,43229.0,43228.0,0.00046181]
[1644550578620,0.16578184,43228.0,43223.0,0.00024118]
[1644550578821,0.31257879,43224.0,43222.0,0.00024118]
[1644550579025,0.0463,43223.0,43221.0,0.01]
[1644550579872,0.104192,43223.0,43221.0,0.01]
[1644550580469,0.104192,43223.0,43220.0,0.00080194]
[1644550580669,0.104192,43223.0,43220.0,0.00056076]
[1644550580870,0.104192,43223.0,43220.0,0.0001]
[1644550581373,0.63250142,43221.0,43220.0,0.00034118]
[1644550581573,0.78669042,43221.0,43220.0,0.0001]
[1644550581771,0.52168986,43221.0,43220.0,0.0001]
[1644550582070,0.67287791,43221.0,43220.0,0.0001]
[1644550582770,0.52168986,43221.0,43220.0,0.0001]
[1644550584421,0.65663428,43221.0,43220.0,0.0001]
[1644550584920,0.52168986,43221.0,43220.0,0.0001]
[1644550586970,0.85471316,43221.0,43220.0,0.0001]
[1644550587173,0.47168986,43221.0,43220.0,0.0001]
[1644550587771,0.60660705,43221.0,43220.0,0.0001]
[1644550588071,0.62553002,43221.0,43220.0,0.0001]
[1644550588272,0.54070312,43221.0,43220.0,0.0001]
[1644550588674,0.82281087,43221.0,43220.0,0.0001]
[1644550588874,0.9576299,43221.0,43220.0,0.0001]
[1644550589475,0.92281087,43221.0,43220.0,0.0001]
[1644550589673,0.9224252,43221.0,43220.0,0.0001]
[1644550589872,1.05723424,43221.0,43220.0,0.0001]
[1644550590074,1.05760373,43221.0,43220.0,0.0001]
[1644550590272,0.92279469,43221.0,43220.0,0.0001]
[1644550590523,1.05759241,43221.0,43220.0,0.0001]
[1644550590722,1.10759241,43221.0,43220.0,0.0001]
[1644550591525,0.97279469,43221.0,43220.0,0.0001]
[1644550591927,1.47279469,43221.0,43220.0,0.0001]
[1644550592127,1.47238656,43221.0,43220.0,0.0001]
[1644550594368,1.04027881,43221.0,43220.0,0.0001]
[1644550594569,1.33646852,43221.0,43220.0,0.0001]
[1644550594769,1.35573173,43221.0,43220.0,0.0001]
[1644550596569,1.33638106,43221.0,43220.0,0.0001]
[1644550596770,1.3545332,43221.0,43220.0,0.0001]
[1644550597774,0.173702,43218.0,43203.0,0.3783]